[Event "Titled Tuesday Blitz May 03 Early 2022"]
[White "Balabayeva, Xeniya"]
[Black "Piliczewski, Bogusz"]
[WhiteFideId "13719688"]
[BlackFideId "1104144"]
[WhiteElo "1941"]
[BlackElo "1896"]
[Result "1-0"]
[Round "05"]
[TimeControl "180+1"]
[Date "2022.05.03"]
[WhiteClock "0:00:14"]
[BlackClock "0:00:01"]

1. e4 {[%clk 0:03:00]}  c6 {[%clk 0:02:57]} 2. Nf3 {[%clk 0:02:59]}  d5 {[%clk 0:02:58]} 3. d3 {[%clk 0:02:59]}  Bg4 {[%clk 0:02:54]} 4. Qe2 {[%clk 0:02:57]}  dxe4 {[%clk 0:02:53]} 5. dxe4 {[%clk 0:02:58]}  e6 {[%clk 0:02:52]} 6. g3 {[%clk 0:02:56]}  Nf6 {[%clk 0:02:51]} 7. Bg2 {[%clk 0:02:55]}  Be7 {[%clk 0:02:50]} 8. O-O {[%clk 0:02:53]}  O-O {[%clk 0:02:49]} 9. h3 {[%clk 0:02:52]}  Bxf3 {[%clk 0:02:49]} 10. Bxf3 {[%clk 0:02:51]}  Nbd7 {[%clk 0:02:49]} 11. Nc3 {[%clk 0:02:43]}  Qc7 {[%clk 0:02:48]} 12. Bg2 {[%clk 0:02:40]}  e5 {[%clk 0:02:44]} 13. Be3 {[%clk 0:02:35]}  Rad8 {[%clk 0:02:29]} 14. a3 {[%clk 0:02:27]}  Bc5 {[%clk 0:02:22]} 15. Rad1 {[%clk 0:02:23]}  Bxe3 {[%clk 0:02:16]} 16. Qxe3 {[%clk 0:02:22]}  a6 {[%clk 0:02:16]} 17. b3 {[%clk 0:02:13]}  Rfe8 {[%clk 0:02:16]} 18. Rd3 {[%clk 0:02:11]}  Nf8 {[%clk 0:02:12]} 19. Rfd1 {[%clk 0:02:05]}  Ne6 {[%clk 0:02:12]} 20. Ne2 {[%clk 0:02:03]}  b6 {[%clk 0:02:01]} 21. Nc1 {[%clk 0:01:25]}  c5 {[%clk 0:01:58]} 22. Kh2 {[%clk 0:01:04]}  b5 {[%clk 0:01:58]} 23. Bf1 {[%clk 0:00:49]}  Rd4 {[%clk 0:01:54]} 24. f3 {[%clk 0:00:45]}  Red8 {[%clk 0:01:53]} 25. c3 {[%clk 0:00:43]}  Rxd3 {[%clk 0:01:45]} 26. Rxd3 {[%clk 0:00:42]}  Rxd3 {[%clk 0:01:43]} 27. Nxd3 {[%clk 0:00:41]}  a5 {[%clk 0:01:29]} 28. Nb2 {[%clk 0:00:34]}  Qc6 {[%clk 0:01:17]} 29. Qd3 {[%clk 0:00:32]}  b4 {[%clk 0:00:59]} 30. axb4 {[%clk 0:00:27]}  axb4 {[%clk 0:00:56]} 31. cxb4 {[%clk 0:00:27]}  cxb4 {[%clk 0:00:56]} 32. Qc4 {[%clk 0:00:27]}  Qd6 {[%clk 0:00:46]} 33. Nd3 {[%clk 0:00:26]}  Nd4 {[%clk 0:00:43]} 34. Kg2 {[%clk 0:00:25]}  g6 {[%clk 0:00:37]} 35. Nxb4 {[%clk 0:00:22]}  Qb6 {[%clk 0:00:27]} 36. Nd3 {[%clk 0:00:15]}  Qxb3 {[%clk 0:00:20]} 37. Qxb3 {[%clk 0:00:15]}  Nxb3 {[%clk 0:00:20]} 38. Nxe5 {[%clk 0:00:16]}  Nd2 {[%clk 0:00:19]} 39. Bd3 {[%clk 0:00:15]}  Ne8 {[%clk 0:00:17]} 40. Bc2 {[%clk 0:00:15]}  Nd6 {[%clk 0:00:14]} 41. Kf2 {[%clk 0:00:15]}  N2c4 {[%clk 0:00:14]} 42. Nxc4 {[%clk 0:00:14]}  Nxc4 {[%clk 0:00:13]} 43. Bd3 {[%clk 0:00:15]}  Nd6 {[%clk 0:00:13]} 44. Ke3 {[%clk 0:00:15]}  f6 {[%clk 0:00:13]} 45. Kd4 {[%clk 0:00:14]}  Kf7 {[%clk 0:00:13]} 46. Kd5 {[%clk 0:00:14]}  Ke7 {[%clk 0:00:14]} 47. f4 {[%clk 0:00:14]}  Nf7 {[%clk 0:00:13]} 48. Bc4 {[%clk 0:00:13]}  h6 {[%clk 0:00:12]} 49. Kc6 {[%clk 0:00:13]}  Nd8+ {[%clk 0:00:11]} 50. Kc7 {[%clk 0:00:13]}  g5 {[%clk 0:00:10]} 51. f5 {[%clk 0:00:13]}  h5 {[%clk 0:00:10]} 52. g4 {[%clk 0:00:13]}  hxg4 {[%clk 0:00:10]} 53. hxg4 {[%clk 0:00:13]}  Nf7 {[%clk 0:00:07]} 54. Bxf7 {[%clk 0:00:13]}  Kxf7 {[%clk 0:00:07]} 55. Kd7 {[%clk 0:00:13]}  Kf8 {[%clk 0:00:06]} 56. Ke6 {[%clk 0:00:13]}  Kg7 {[%clk 0:00:06]} 57. Ke7 {[%clk 0:00:14]}  Kg8 {[%clk 0:00:05]} 58. Kxf6 {[%clk 0:00:15]}  Kf8 {[%clk 0:00:04]} 59. e5 {[%clk 0:00:15]}  Ke8 {[%clk 0:00:04]} 60. Kxg5 {[%clk 0:00:14]}  Kf7 {[%clk 0:00:03]} 61. Kf4 {[%clk 0:00:13]}  Ke7 {[%clk 0:00:03]} 62. g5 {[%clk 0:00:13]}  Kf7 {[%clk 0:00:03]} 63. g6+ {[%clk 0:00:13]}  Kg7 {[%clk 0:00:02]} 64. Kg5 {[%clk 0:00:14]}  Kg8 {[%clk 0:00:02]} 65. Kf6 {[%clk 0:00:14]}  Kf8 {[%clk 0:00:01]} 66. e6 {[%clk 0:00:14]} 1-0


[Site "https://www.chess.com"]

[Event "Titled Tuesday Blitz May 03 Early 2022"]
[White "Bellissimo, Joseph F."]
[Black "Jakubiec, Artur"]
[WhiteFideId "2609843"]
[BlackFideId "1103261"]
[WhiteElo "2061"]
[BlackElo "2473"]
[Result "1-0"]
[Round "05"]
[TimeControl "180+1"]
[Date "2022.05.03"]
[WhiteClock "0:01:26"]
[BlackClock "0:00:33"]

1. e4 {[%clk 0:03:00]}  c5 {[%clk 0:02:56]} 2. Nf3 {[%clk 0:03:00]}  d6 {[%clk 0:02:55]} 3. d4 {[%clk 0:03:00]}  cxd4 {[%clk 0:02:55]} 4. Qxd4 {[%clk 0:03:01]}  Nc6 {[%clk 0:02:54]} 5. Bb5 {[%clk 0:03:01]}  Bd7 {[%clk 0:02:55]} 6. Bxc6 {[%clk 0:03:02]}  Bxc6 {[%clk 0:02:56]} 7. Nc3 {[%clk 0:03:02]}  e5 {[%clk 0:02:51]} 8. Qd3 {[%clk 0:03:00]}  h6 {[%clk 0:02:52]} 9. Be3 {[%clk 0:02:58]}  Nf6 {[%clk 0:02:51]} 10. h3 {[%clk 0:02:58]}  Be7 {[%clk 0:02:50]} 11. O-O-O {[%clk 0:02:58]}  a6 {[%clk 0:02:48]} 12. g4 {[%clk 0:02:56]}  b5 {[%clk 0:02:48]} 13. Rhg1 {[%clk 0:02:54]}  b4 {[%clk 0:02:47]} 14. Qc4 {[%clk 0:02:47]}  Qd7 {[%clk 0:02:26]} 15. Qxb4 {[%clk 0:02:44]}  d5 {[%clk 0:02:22]} 16. Qa5 {[%clk 0:02:39]}  Qb7 {[%clk 0:01:48]} 17. exd5 {[%clk 0:02:33]}  Bb5 {[%clk 0:01:48]} 18. Nxe5 {[%clk 0:02:15]}  O-O {[%clk 0:01:41]} 19. Qb6 {[%clk 0:02:10]}  Qc8 {[%clk 0:01:36]} 20. d6 {[%clk 0:02:09]}  Bd8 {[%clk 0:01:36]} 21. Qd4 {[%clk 0:02:09]}  Nd7 {[%clk 0:01:31]} 22. g5 {[%clk 0:02:06]}  h5 {[%clk 0:01:30]} 23. Nd5 {[%clk 0:01:57]}  Re8 {[%clk 0:01:12]} 24. f4 {[%clk 0:01:46]}  Nxe5 {[%clk 0:01:10]} 25. fxe5 {[%clk 0:01:46]}  Qe6 {[%clk 0:01:10]} 26. Nf6+ {[%clk 0:01:41]}  Bxf6 {[%clk 0:01:10]} 27. gxf6 {[%clk 0:01:41]}  g6 {[%clk 0:01:11]} 28. Qe4 {[%clk 0:01:30]}  Rec8 {[%clk 0:00:33]} 29. Rxg6+ {[%clk 0:01:28]}  Kf8 {[%clk 0:00:33]} 30. Bh6+ {[%clk 0:01:26]}  Ke8 {[%clk 0:00:33]} 31. d7+ {[%clk 0:01:26]} 1-0


[Site "https://www.chess.com"]

[Event "Titled Tuesday Blitz May 03 Early 2022"]
[White "Bluebaum, Matthias"]
[Black "Moiseenko, Alexander"]
[WhiteFideId "24651516"]
[BlackFideId "14102560"]
[WhiteElo "2550"]
[BlackElo "2577"]
[Result "1-0"]
[Round "05"]
[TimeControl "180+1"]
[Date "2022.05.03"]
[WhiteClock "0:00:27"]
[BlackClock "0:00:03"]

1. d4 {[%clk 0:03:00]}  Nf6 {[%clk 0:02:53]} 2. c4 {[%clk 0:03:00]}  e6 {[%clk 0:02:53]} 3. Nc3 {[%clk 0:03:01]}  Bb4 {[%clk 0:02:53]} 4. e3 {[%clk 0:03:02]}  b6 {[%clk 0:02:52]} 5. Nf3 {[%clk 0:02:54]}  Bb7 {[%clk 0:02:51]} 6. Bd3 {[%clk 0:02:55]}  O-O {[%clk 0:02:51]} 7. Bd2 {[%clk 0:02:55]}  c5 {[%clk 0:02:47]} 8. a3 {[%clk 0:02:55]}  Bxc3 {[%clk 0:02:46]} 9. Bxc3 {[%clk 0:02:56]}  Ne4 {[%clk 0:02:45]} 10. Bxe4 {[%clk 0:02:56]}  Bxe4 {[%clk 0:02:44]} 11. dxc5 {[%clk 0:02:57]}  bxc5 {[%clk 0:02:43]} 12. Qd6 {[%clk 0:02:57]}  Nc6 {[%clk 0:02:26]} 13. Qxc5 {[%clk 0:02:54]}  Rc8 {[%clk 0:02:23]} 14. Qd6 {[%clk 0:02:41]}  f6 {[%clk 0:02:17]} 15. Rd1 {[%clk 0:02:36]}  Rf7 {[%clk 0:02:16]} 16. O-O {[%clk 0:02:35]}  Bxf3 {[%clk 0:02:12]} 17. gxf3 {[%clk 0:02:36]}  Ne5 {[%clk 0:02:08]} 18. Bxe5 {[%clk 0:02:19]}  fxe5 {[%clk 0:02:09]} 19. Qxe5 {[%clk 0:02:18]}  Rxf3 {[%clk 0:01:41]} 20. Rd4 {[%clk 0:02:18]}  Rf5 {[%clk 0:01:37]} 21. Qe4 {[%clk 0:02:18]}  Qf6 {[%clk 0:01:17]} 22. f4 {[%clk 0:01:49]}  Rf8 {[%clk 0:00:41]} 23. Rxd7 {[%clk 0:01:36]}  g5 {[%clk 0:00:27]} 24. Rf2 {[%clk 0:01:26]}  Kh8 {[%clk 0:00:26]} 25. Qb7 {[%clk 0:01:04]}  gxf4 {[%clk 0:00:17]} 26. Rxh7+ {[%clk 0:00:55]}  Kg8 {[%clk 0:00:17]} 27. Rg2+ {[%clk 0:00:56]}  Rg5 {[%clk 0:00:18]} 28. Rh5 {[%clk 0:00:56]}  Rg7 {[%clk 0:00:10]} 29. Rxg7+ {[%clk 0:00:32]}  Qxg7+ {[%clk 0:00:11]} 30. Qxg7+ {[%clk 0:00:33]}  Kxg7 {[%clk 0:00:11]} 31. Rg5+ {[%clk 0:00:34]}  Kh6 {[%clk 0:00:08]} 32. Re5 {[%clk 0:00:34]}  fxe3 {[%clk 0:00:06]} 33. Rxe6+ {[%clk 0:00:34]}  Kg5 {[%clk 0:00:06]} 34. Rxe3 {[%clk 0:00:35]}  Rd8 {[%clk 0:00:05]} 35. Kf2 {[%clk 0:00:31]}  Kf4 {[%clk 0:00:04]} 36. Re2 {[%clk 0:00:29]}  Rd3 {[%clk 0:00:04]} 37. Rc2 {[%clk 0:00:27]}  Rf3+ {[%clk 0:00:02]} 38. Kg2 {[%clk 0:00:27]}  Rh3 {[%clk 0:00:03]} 39. Kxh3 {[%clk 0:00:27]} 1-0


[Site "https://www.chess.com"]

[Event "Titled Tuesday Blitz May 03 Early 2022"]
[White "Bok, Benjamin"]
[Black "Svane, Rasmus"]
[WhiteFideId "1017063"]
[BlackFideId "4657101"]
[WhiteElo "2658"]
[BlackElo "2645"]
[Result "1-0"]
[Round "05"]
[TimeControl "180+1"]
[Date "2022.05.03"]
[WhiteClock "0:00:07"]
[BlackClock "0:00:02"]

1. d4 {[%clk 0:03:00]}  Nf6 {[%clk 0:03:00]} 2. c4 {[%clk 0:03:01]}  e6 {[%clk 0:03:00]} 3. Nc3 {[%clk 0:03:01]}  Bb4 {[%clk 0:03:00]} 4. Qc2 {[%clk 0:03:01]}  d5 {[%clk 0:02:56]} 5. a3 {[%clk 0:03:01]}  Bxc3+ {[%clk 0:02:55]} 6. Qxc3 {[%clk 0:03:02]}  O-O {[%clk 0:02:54]} 7. Bg5 {[%clk 0:03:02]}  h6 {[%clk 0:02:46]} 8. Bxf6 {[%clk 0:03:02]}  Qxf6 {[%clk 0:02:47]} 9. Nf3 {[%clk 0:03:02]}  dxc4 {[%clk 0:02:44]} 10. Qxc4 {[%clk 0:03:03]}  Nc6 {[%clk 0:02:44]} 11. Qc3 {[%clk 0:03:03]}  Re8 {[%clk 0:02:36]} 12. Rd1 {[%clk 0:03:03]}  e5 {[%clk 0:02:26]} 13. d5 {[%clk 0:03:03]}  Ne7 {[%clk 0:02:26]} 14. Qxe5 {[%clk 0:02:24]}  Qb6 {[%clk 0:01:48]} 15. e3 {[%clk 0:01:57]}  Bg4 {[%clk 0:01:41]} 16. Qd4 {[%clk 0:01:14]}  Bf5 {[%clk 0:01:02]} 17. Qxb6 {[%clk 0:00:44]}  axb6 {[%clk 0:01:03]} 18. d6 {[%clk 0:00:44]}  cxd6 {[%clk 0:01:04]} 19. Rxd6 {[%clk 0:00:43]}  Rac8 {[%clk 0:01:04]} 20. Nd4 {[%clk 0:00:40]}  Rc1+ {[%clk 0:00:58]} 21. Kd2 {[%clk 0:00:40]}  Rec8 {[%clk 0:00:58]} 22. Rd8+ {[%clk 0:00:30]}  Rxd8 {[%clk 0:00:57]} 23. Kxc1 {[%clk 0:00:30]}  Be4 {[%clk 0:00:52]} 24. f3 {[%clk 0:00:31]}  Nf5 {[%clk 0:00:28]} 25. Nxf5 {[%clk 0:00:09]}  Bxf5 {[%clk 0:00:29]} 26. e4 {[%clk 0:00:08]}  Be6 {[%clk 0:00:30]} 27. Be2 {[%clk 0:00:07]}  Rc8+ {[%clk 0:00:28]} 28. Kd2 {[%clk 0:00:05]}  Rd8+ {[%clk 0:00:27]} 29. Ke3 {[%clk 0:00:05]}  Rc8 {[%clk 0:00:28]} 30. Bd3 {[%clk 0:00:05]}  g5 {[%clk 0:00:17]} 31. Kd2 {[%clk 0:00:04]}  Kg7 {[%clk 0:00:14]} 32. Rc1 {[%clk 0:00:04]}  Rd8 {[%clk 0:00:08]} 33. Ke3 {[%clk 0:00:04]}  Kf6 {[%clk 0:00:09]} 34. g3 {[%clk 0:00:05]}  Rd7 {[%clk 0:00:08]} 35. f4 {[%clk 0:00:05]}  gxf4+ {[%clk 0:00:08]} 36. gxf4 {[%clk 0:00:05]}  Bg4 {[%clk 0:00:06]} 37. e5+ {[%clk 0:00:05]}  Ke7 {[%clk 0:00:06]} 38. f5 {[%clk 0:00:05]}  Rd5 {[%clk 0:00:04]} 39. Be4 {[%clk 0:00:04]}  Rxe5 {[%clk 0:00:03]} 40. Kf4 {[%clk 0:00:04]}  f6 {[%clk 0:00:04]} 41. Rc7+ {[%clk 0:00:04]}  Kd8 {[%clk 0:00:04]} 42. Rxb7 {[%clk 0:00:03]}  Be2 {[%clk 0:00:02]} 43. Rxb6 {[%clk 0:00:03]}  Ke7 {[%clk 0:00:03]} 44. Rb7+ {[%clk 0:00:04]}  Kd8 {[%clk 0:00:03]} 45. Rf7 {[%clk 0:00:04]}  Rb5 {[%clk 0:00:02]} 46. b4 {[%clk 0:00:03]}  Rb6 {[%clk 0:00:02]} 47. Rh7 {[%clk 0:00:02]}  Ke8 {[%clk 0:00:02]} 48. Rxh6 {[%clk 0:00:02]}  Ra6 {[%clk 0:00:03]} 49. h4 {[%clk 0:00:01]}  Kf7 {[%clk 0:00:03]} 50. Rh7+ {[%clk 0:00:01]}  Kf8 {[%clk 0:00:03]} 51. Rc7 {[%clk 0:00:01]}  Rxa3 {[%clk 0:00:04]} 52. Rc6 {[%clk 0:00:01]}  Kf7 {[%clk 0:00:04]} 53. Rc7+ {[%clk 0:00:02]}  Kf8 {[%clk 0:00:04]} 54. Rb7 {[%clk 0:00:03]}  Ra4 {[%clk 0:00:03]} 55. Rb8+ {[%clk 0:00:03]}  Ke7 {[%clk 0:00:04]} 56. Rb7+ {[%clk 0:00:03]}  Kf8 {[%clk 0:00:04]} 57. Bd5 {[%clk 0:00:03]}  Bd3 {[%clk 0:00:04]} 58. Rf7+ {[%clk 0:00:03]}  Ke8 {[%clk 0:00:04]} 59. Rxf6 {[%clk 0:00:04]}  Rxb4+ {[%clk 0:00:05]} 60. Kg5 {[%clk 0:00:04]}  Rd4 {[%clk 0:00:04]} 61. Be6 {[%clk 0:00:05]}  Bc2 {[%clk 0:00:02]} 62. h5 {[%clk 0:00:05]}  Bd1 {[%clk 0:00:03]} 63. Rh6 {[%clk 0:00:04]}  Ke7 {[%clk 0:00:03]} 64. Rh7+ {[%clk 0:00:05]}  Kd6 {[%clk 0:00:03]} 65. Kf6 {[%clk 0:00:05]}  Bc2 {[%clk 0:00:01]} 66. Rd7+ {[%clk 0:00:05]}  Kc5 {[%clk 0:00:02]} 67. Rxd4 {[%clk 0:00:06]}  Kxd4 {[%clk 0:00:02]} 68. h6 {[%clk 0:00:06]}  Bxf5 {[%clk 0:00:02]} 69. Bxf5 {[%clk 0:00:07]} 1-0


[Site "https://www.chess.com"]

[Event "Titled Tuesday Blitz May 03 Early 2022"]
[White "Bommini, Mounika Akshaya"]
[Black "Buscar, Michael"]
[WhiteFideId "25019872"]
[BlackFideId "2603616"]
[WhiteElo "1671"]
[BlackElo "2010"]
[Result "1-0"]
[Round "05"]
[TimeControl "180+1"]
[Date "2022.05.03"]
[WhiteClock "0:01:53"]
[BlackClock "0:01:04"]

1. d4 {[%clk 0:02:58]}  d5 {[%clk 0:02:58]} 2. c4 {[%clk 0:02:58]}  e6 {[%clk 0:02:58]} 3. Nc3 {[%clk 0:02:58]}  Nf6 {[%clk 0:02:58]} 4. Nf3 {[%clk 0:02:59]}  Be7 {[%clk 0:02:57]} 5. Bf4 {[%clk 0:02:56]}  O-O {[%clk 0:02:55]} 6. e3 {[%clk 0:02:56]}  a6 {[%clk 0:02:51]} 7. c5 {[%clk 0:02:52]}  b6 {[%clk 0:02:45]} 8. cxb6 {[%clk 0:02:50]}  cxb6 {[%clk 0:02:45]} 9. Bd3 {[%clk 0:02:50]}  Nbd7 {[%clk 0:02:40]} 10. O-O {[%clk 0:02:50]}  Bb7 {[%clk 0:02:36]} 11. Rc1 {[%clk 0:02:49]}  Rc8 {[%clk 0:02:35]} 12. Qe2 {[%clk 0:02:45]}  b5 {[%clk 0:02:32]} 13. a4 {[%clk 0:02:40]}  b4 {[%clk 0:02:26]} 14. Na2 {[%clk 0:02:38]}  a5 {[%clk 0:02:26]} 15. Rxc8 {[%clk 0:02:33]}  Qxc8 {[%clk 0:02:23]} 16. Rc1 {[%clk 0:02:34]}  Qa8 {[%clk 0:02:23]} 17. Rc7 {[%clk 0:02:30]}  Rc8 {[%clk 0:02:16]} 18. Qc2 {[%clk 0:02:26]}  Bc6 {[%clk 0:02:14]} 19. Rxc8+ {[%clk 0:02:22]}  Qxc8 {[%clk 0:02:13]} 20. Bb5 {[%clk 0:02:21]}  Bb7 {[%clk 0:02:13]} 21. Qxc8+ {[%clk 0:02:20]}  Bxc8 {[%clk 0:02:14]} 22. Bc7 {[%clk 0:02:20]}  Ne4 {[%clk 0:01:47]} 23. Bxa5 {[%clk 0:02:17]}  b3 {[%clk 0:01:47]} 24. Nc1 {[%clk 0:02:14]}  Nd6 {[%clk 0:01:43]} 25. Bc6 {[%clk 0:02:12]}  Nc4 {[%clk 0:01:43]} 26. Bc7 {[%clk 0:02:05]}  Nxb2 {[%clk 0:01:35]} 27. Nxb3 {[%clk 0:02:02]}  Bb4 {[%clk 0:01:24]} 28. a5 {[%clk 0:01:59]}  Nc4 {[%clk 0:01:24]} 29. a6 {[%clk 0:01:57]}  Bxa6 {[%clk 0:01:06]} 30. Bxd7 {[%clk 0:01:57]}  Bf8 {[%clk 0:01:04]} 31. Nc5 {[%clk 0:01:53]} 1-0


[Site "https://www.chess.com"]

[Event "Titled Tuesday Blitz May 03 Early 2022"]
[White "Chuemsakul, Sarocha"]
[Black "Sailer, Mike"]
[WhiteFideId "6203710"]
[BlackFideId "2012901"]
[WhiteElo "1703"]
[BlackElo "2109"]
[Result "0-1"]
[Round "05"]
[TimeControl "180+1"]
[Date "2022.05.03"]
[WhiteClock "0:00:04"]
[BlackClock "0:00:13"]

1. Nf3 {[%clk 0:03:00]}  d5 {[%clk 0:02:59]} 2. g3 {[%clk 0:03:00]}  Nf6 {[%clk 0:02:58]} 3. Bg2 {[%clk 0:03:00]}  Bf5 {[%clk 0:02:59]} 4. O-O {[%clk 0:02:57]}  e6 {[%clk 0:02:59]} 5. c4 {[%clk 0:02:57]}  c6 {[%clk 0:02:58]} 6. cxd5 {[%clk 0:02:56]}  exd5 {[%clk 0:02:58]} 7. Qb3 {[%clk 0:02:56]}  Qb6 {[%clk 0:02:58]} 8. Qxb6 {[%clk 0:02:44]}  axb6 {[%clk 0:02:58]} 9. d3 {[%clk 0:02:44]}  Bd6 {[%clk 0:02:48]} 10. Nc3 {[%clk 0:02:43]}  O-O {[%clk 0:02:44]} 11. Re1 {[%clk 0:02:43]}  Re8 {[%clk 0:02:44]} 12. Bg5 {[%clk 0:02:40]}  Nbd7 {[%clk 0:02:42]} 13. Nd4 {[%clk 0:02:14]}  Bg6 {[%clk 0:02:37]} 14. e4 {[%clk 0:02:14]}  dxe4 {[%clk 0:01:56]} 15. dxe4 {[%clk 0:02:12]}  Bb4 {[%clk 0:01:47]} 16. f3 {[%clk 0:01:21]}  h6 {[%clk 0:01:15]} 17. Bd2 {[%clk 0:01:18]}  Bc5 {[%clk 0:01:03]} 18. Be3 {[%clk 0:01:18]}  Ne5 {[%clk 0:01:01]} 19. Nc2 {[%clk 0:01:03]}  Nd3 {[%clk 0:00:50]} 20. Reb1 {[%clk 0:00:50]}  Nd7 {[%clk 0:00:45]} 21. Bf1 {[%clk 0:00:48]}  N7e5 {[%clk 0:00:42]} 22. Be2 {[%clk 0:00:31]}  Bxe3+ {[%clk 0:00:32]} 23. Nxe3 {[%clk 0:00:30]}  Nc5 {[%clk 0:00:26]} 24. f4 {[%clk 0:00:27]}  Ned7 {[%clk 0:00:17]} 25. f5 {[%clk 0:00:27]}  Bh7 {[%clk 0:00:17]} 26. Bf3 {[%clk 0:00:26]}  Ne5 {[%clk 0:00:15]} 27. Kg2 {[%clk 0:00:23]}  f6 {[%clk 0:00:15]} 28. Rd1 {[%clk 0:00:17]}  Red8 {[%clk 0:00:13]} 29. Be2 {[%clk 0:00:11]}  Kf8 {[%clk 0:00:13]} 30. Nc2 {[%clk 0:00:10]}  Ke7 {[%clk 0:00:12]} 31. Nd4 {[%clk 0:00:11]}  Bg8 {[%clk 0:00:12]} 32. b4 {[%clk 0:00:11]}  Na4 {[%clk 0:00:08]} 33. Nxa4 {[%clk 0:00:08]}  Rxa4 {[%clk 0:00:08]} 34. a3 {[%clk 0:00:08]}  b5 {[%clk 0:00:08]} 35. Kf2 {[%clk 0:00:05]}  Bc4 {[%clk 0:00:08]} 36. h3 {[%clk 0:00:05]}  Bxe2 {[%clk 0:00:08]} 37. Kxe2 {[%clk 0:00:05]}  Nc4 {[%clk 0:00:08]} 38. Rd3 {[%clk 0:00:05]}  Nb2 {[%clk 0:00:07]} 39. Rb3 {[%clk 0:00:04]}  Rxd4 {[%clk 0:00:05]} 40. Rxb2 {[%clk 0:00:04]}  Rxe4+ {[%clk 0:00:06]} 41. Kf3 {[%clk 0:00:04]}  Re5 {[%clk 0:00:06]} 42. Rd1 {[%clk 0:00:04]}  Rxf5+ {[%clk 0:00:06]} 43. Kg4 {[%clk 0:00:04]}  Rd5 {[%clk 0:00:06]} 44. Re2+ {[%clk 0:00:04]}  Re5 {[%clk 0:00:06]} 45. Rxe5+ {[%clk 0:00:03]}  fxe5 {[%clk 0:00:06]} 46. Kf5 {[%clk 0:00:04]}  Rxa3 {[%clk 0:00:07]} 47. Kxe5 {[%clk 0:00:04]}  Rxg3 {[%clk 0:00:07]} 48. Rf1 {[%clk 0:00:04]}  Rxh3 {[%clk 0:00:07]} 49. Ra1 {[%clk 0:00:03]}  Kd7 {[%clk 0:00:06]} 50. Ra7 {[%clk 0:00:03]}  Kc7 {[%clk 0:00:07]} 51. Ra8 {[%clk 0:00:03]}  Rg3 {[%clk 0:00:06]} 52. Rf8 {[%clk 0:00:03]}  h5 {[%clk 0:00:06]} 53. Rf7+ {[%clk 0:00:03]}  Kb6 {[%clk 0:00:07]} 54. Kd6 {[%clk 0:00:03]}  h4 {[%clk 0:00:07]} 55. Rf4 {[%clk 0:00:03]}  g5 {[%clk 0:00:06]} 56. Rf8 {[%clk 0:00:02]}  h3 {[%clk 0:00:06]} 57. Rh8 {[%clk 0:00:02]}  g4 {[%clk 0:00:06]} 58. Rh7 {[%clk 0:00:02]}  Rd3+ {[%clk 0:00:06]} 59. Ke5 {[%clk 0:00:01]}  Rd2 {[%clk 0:00:05]} 60. Ke4 {[%clk 0:00:01]}  h2 {[%clk 0:00:05]} 61. Kf4 {[%clk 0:00:02]}  Rg2 {[%clk 0:00:05]} 62. Rh6 {[%clk 0:00:01]}  g3 {[%clk 0:00:05]} 63. Rh7 {[%clk 0:00:01]}  Rg1 {[%clk 0:00:05]} 64. Kf3 {[%clk 0:00:02]}  h1=Q+ {[%clk 0:00:06]} 65. Rxh1 {[%clk 0:00:01]}  Rxh1 {[%clk 0:00:06]} 66. Kxg3 {[%clk 0:00:02]}  Rb1 {[%clk 0:00:07]} 67. Kf3 {[%clk 0:00:02]}  Rxb4 {[%clk 0:00:07]} 68. Ke3 {[%clk 0:00:02]}  Rc4 {[%clk 0:00:08]} 69. Kd3 {[%clk 0:00:03]}  Rc5 {[%clk 0:00:09]} 70. Kd2 {[%clk 0:00:03]}  b4 {[%clk 0:00:10]} 71. Kd3 {[%clk 0:00:03]}  b3 {[%clk 0:00:11]} 72. Kd2 {[%clk 0:00:04]}  b2 {[%clk 0:00:11]} 73. Ke3 {[%clk 0:00:04]}  b1=Q {[%clk 0:00:11]} 74. Kd2 {[%clk 0:00:04]}  Qb2+ {[%clk 0:00:12]} 75. Kd3 {[%clk 0:00:04]}  Qb3+ {[%clk 0:00:12]} 76. Kd2 {[%clk 0:00:04]}  Rc2+ {[%clk 0:00:12]} 77. Kd1 {[%clk 0:00:04]}  Qb1# {[%clk 0:00:13]} 0-1


[Site "https://www.chess.com"]

[Event "Titled Tuesday Blitz May 03 Early 2022"]
[White "Cunjalo, Faris"]
[Black "Andreev, Eduard"]
[WhiteFideId "14410710"]
[BlackFideId "14103400"]
[WhiteElo "2850"]
[BlackElo "2533"]
[Result "1-0"]
[Round "05"]
[TimeControl "180+1"]
[Date "2022.05.03"]
[WhiteClock "0:01:27"]
[BlackClock "0:01:46"]

1. Nf3 {[%clk 0:03:00]}  g6 {[%clk 0:03:00]} 2. g3 {[%clk 0:03:00]}  Bg7 {[%clk 0:03:01]} 3. Bg2 {[%clk 0:03:01]}  e5 {[%clk 0:02:59]} 4. O-O {[%clk 0:03:01]}  Nc6 {[%clk 0:02:58]} 5. c4 {[%clk 0:03:01]}  d6 {[%clk 0:02:57]} 6. Nc3 {[%clk 0:03:00]}  Nf6 {[%clk 0:02:56]} 7. d3 {[%clk 0:02:58]}  O-O {[%clk 0:02:55]} 8. Rb1 {[%clk 0:02:58]}  a5 {[%clk 0:02:51]} 9. a3 {[%clk 0:02:58]}  Re8 {[%clk 0:02:51]} 10. Bg5 {[%clk 0:02:43]}  h6 {[%clk 0:02:49]} 11. Bxf6 {[%clk 0:02:44]}  Bxf6 {[%clk 0:02:50]} 12. b4 {[%clk 0:02:44]}  axb4 {[%clk 0:02:48]} 13. axb4 {[%clk 0:02:45]}  Bg7 {[%clk 0:02:48]} 14. b5 {[%clk 0:02:43]}  Ne7 {[%clk 0:02:47]} 15. Nd2 {[%clk 0:02:44]}  c6 {[%clk 0:02:43]} 16. Qc2 {[%clk 0:02:37]}  Be6 {[%clk 0:02:38]} 17. bxc6 {[%clk 0:02:36]}  bxc6 {[%clk 0:02:37]} 18. Rb7 {[%clk 0:02:28]}  Qc8 {[%clk 0:02:30]} 19. Rfb1 {[%clk 0:02:27]}  h5 {[%clk 0:02:27]} 20. Nde4 {[%clk 0:02:24]}  Nf5 {[%clk 0:02:25]} 21. Ng5 {[%clk 0:02:20]}  Bd7 {[%clk 0:02:22]} 22. Nce4 {[%clk 0:02:12]}  Ra1 {[%clk 0:02:15]} 23. Qb2 {[%clk 0:01:56]}  Rxb1+ {[%clk 0:02:13]} 24. Qxb1 {[%clk 0:01:57]}  Rd8 {[%clk 0:02:00]} 25. Qb6 {[%clk 0:01:54]}  Be8 {[%clk 0:01:57]} 26. Bh3 {[%clk 0:01:47]}  Qa8 {[%clk 0:01:53]} 27. Ra7 {[%clk 0:01:40]}  Qb8 {[%clk 0:01:52]} 28. Qxb8 {[%clk 0:01:41]}  Rxb8 {[%clk 0:01:51]} 29. Bxf5 {[%clk 0:01:41]}  gxf5 {[%clk 0:01:50]} 30. Nxd6 {[%clk 0:01:42]}  c5 {[%clk 0:01:47]} 31. Nxe8 {[%clk 0:01:41]}  Rxe8 {[%clk 0:01:46]} 32. Rxf7 {[%clk 0:01:27]} 1-0


[Site "https://www.chess.com"]